[Event "17th Aeroflot Open-A 2019"]
[Site "Moscow"]
[Date "2019.02.22"]
[Round "3.31"]
[White "Flom, Gabriel"]
[Black "Gordievsky, Dmitry"]
[Result "1/2-1/2"]
[ECO "B07"]
[WhiteElo "2460"]
[BlackElo "2603"]
[Annotator "ChessBase"]
[PlyCount "102"]
[EventDate "2019.02.19"]
[EventCountry "RUS"]
[SourceTitle "playchess.com"]
[Source "ChessBase"]
[SourceQuality "1"]
[TimeControl "40/5400+30:1800+30"]

1. d4 {[%emt 0:00:00]} d6 {[%emt 0:00:00]} 2. e4 {[%emt 0:00:25]} Nf6 {[%emt 0:02:15]} 3. Nc3 {[%emt 0:00:05]} c6 {[%emt 0:02:45]} 4. Nf3 {[%emt 0:05:16]} g6 {[%emt 0:11:40]} 5. Be3 {[%emt 0:00:12]} Bg7 {[%emt 0:01:28]} 6. Qd2 {[%emt 0:00:10]} b5 {[%emt 0:05:54]} 7. Bd3 {[%emt 0:00:16]} O-O {[%emt 0:07:59]} 8. Bh6 {[%emt 0:05:04]} Bg4 {[%emt 0:06:04]} 9. Nh4 {[%emt 0:10:59]} e5 {[%emt 0:06:45]} 10. dxe5 {[%emt 0:01:37]} dxe5 {[%emt 0:00:24]} 11. h3 {[%emt 0:05:30]} Be6 {[%emt 0:04:31]} 12. Nf3 {[%emt 0:05:35]} Nbd7 {[%emt 0:01:01]} 13. Ne2 {[%emt 0:01:55]} c5 {[%emt 0:03:52]} 14. Ng3 {[%emt 0:00:21]} c4 {[%emt 0:04:15]} 15. Bxg7 {[%emt 0:00:33]} Kxg7 {[%emt 0:00:10]} 16. Be2 {[%emt 0:00:04]} Qe7 {[%emt 0:10:33]} 17. O-O {[%emt 0:01:20]} Rfc8 {[%emt 0:02:24]} 18. Rad1 {[%emt 0:11:00]} h6 {[%emt 0:02:29]} 19. Nh4 {[%emt 0:06:15]} Nxe4 {[%emt 0:12:57]} 20. Nxe4 {[%emt 0:05:02]} Qxh4 {[%emt 0:00:05]} 21. f4 {[%emt 0:00:04]} Rd8 {[%emt 0:01:32]} 22. Qc3 {[%emt 0:01:14]} Qe7 {[%emt 0:09:18]} 23. fxe5 {[%emt 0:02:29]} Rab8 {[%emt 0:01:07]} 24. Rd6 {[%emt 0:09:11]} Nf8 {[%emt 0:00:11]} 25. Rfd1 {[%emt 0:01:42]} Rdc8 {[%emt 0:00:11]} 26. Nf6 {[%emt 0:04:27]} Qc7 {[%emt 0:01:03]} 27. Bg4 {[%emt 0:03:20]} Qc5+ {[%emt 0:00:09]} 28. Kh2 {[%emt 0:00:09]} b4 {[%emt 0:00:12]} 29. Qg3 {[%emt 0:00:20]} Bxg4 {[%emt 0:00:19]} 30. R1d5 {[%emt 0:01:09]} Qc7 {[%emt 0:00:02]} 31. Qxg4 {[%emt 0:01:56]} b3 {[%emt 0:01:39]} 32. Qf4 {[%emt 0:06:19]} Qe7 {[%emt 0:01:59]} 33. cxb3 {[%emt 0:03:30]} cxb3 {[%emt 0:00:03]} 34. axb3 {[%emt 0:05:29]} Rxb3 {[%emt 0:00:01]} 35. Qh4 {[%emt 0:00:09]} Rb7 {[%emt 0:00:38]} 36. b4 {[%emt 0:02:30]} Rcb8 {[%emt 0:00:36]} 37. b5 {[%emt 0:00:20]} Rc8 {[%emt 0:00:42]} 38. Qg4 {[%emt 0:01:11]} Rbc7 {[%emt 0:00:14]} 39. Nh5+ {[%emt 0:01:29]} Kh8 {[%emt 0:00:27]} 40. Nf6 {[%emt 0:00:00]} Kg7 {[%emt 0:00:00]} 41. h4 {[%emt 0:06:09]} Rc5 {[%emt 0:03:38]} 42. Qf4 {[%emt 0:06:35]} Ne6 {[%emt 0:10:13]} 43. Qg3 {[%emt 0:03:17]} Rc3 {[%emt 0:00:43]} 44. Rd7 {[%emt 0:06:23]} Qxd7 {[%emt 0:06:03]} 45. Rxd7 {[%emt 0:00:04]} Rxg3 {[%emt 0:00:06]} 46. Kxg3 {[%emt 0:00:01]} Rb8 {[%emt 0:01:55]} 47. Rxa7 {[%emt 0:02:33]} Rxb5 {[%emt 0:00:06]} 48. Ne8+ {[%emt 0:00:12]} Kf8 {[%emt 0:03:11]} 49. Nd6 {[%emt 0:00:04]} Rxe5 {[%emt 0:00:46]} 50. Rxf7+ {[%emt 0:00:50]} Kg8 {[%emt 0:00:04]} 51. Rf6 {[%emt 0:01:16]} Nf8 {[%emt 0:02:10]} 1/2-1/2

[Event "17th Aeroflot Open-A 2019"]
[Site "Moscow"]
[Date "2019.02.22"]
[Round "3.35"]
[White "Zhu, Jiner"]
[Black "Petrosyan, Manuel"]
[Result "0-1"]
[ECO "B12"]
[WhiteElo "2442"]
[BlackElo "2564"]
[Annotator "RC"]
[PlyCount "96"]
[EventDate "2019.02.19"]
[EventCountry "RUS"]
[SourceTitle "playchess.com"]
[Source "ChessBase"]
[SourceQuality "1"]
[TimeControl "40/5400+30:1800+30"]

1. e4 {[%emt 0:00:00]} c6 {[%emt 0:03:50]} 2. d4 {[%emt 0:00:00]} d5 {[%emt 0:00:05]} 3. e5 {[%emt 0:00:00]} Bf5 {[%emt 0:00:03]} 4. h4 {[%emt 0:00:00]} h5 {[%emt 0:00:12]} 5. Bd3 {[%emt 0:00:06]} Bxd3 {[%emt 0:00:06]} 6. Qxd3 {[%emt 0:00:04]} e6 {[%emt 0:00:04]} 7. Bg5 {[%emt 0:00:06]} Be7 {[%emt 0:00:05]} 8. Nf3 {[%emt 0:00:06]} Nh6 {[%emt 0:00:25]} 9. Bxh6 {[%emt 0:00:36]} Rxh6 {[%emt 0:00:05]} 10. Nbd2 {[%emt 0:00:14]} Nd7 {[%emt 0:00:26]} 11. c4 {[%emt 0:01:34]} dxc4 {[%emt 0:01:10]} 12. Nxc4 {[%emt 0:02:21]} Nb6 {[%emt 0:00:09]} 13. a3 {[%emt 0:16:34]} Rg6 {[%emt 0:06:27]} 14. Ne3 {[%emt 0:09:14]} Nd5 {[%emt 0:03:07]} 15. g3 {[%emt 0:00:11]} Nxe3 {[%emt 0:01:36]} 16. Qxe3 {[%emt 0:00:05]} Rg4 {[%emt 0:01:24]} 17. O-O-O {[%emt 0:02:24]} Qd5 {[%emt 0:07:42]} 18. Ng5 {[%emt 0:16:25]} c5 {[%emt 0:10:20]} 19. dxc5 {[%emt 0:03:04]} Bxc5 {[%emt 0:00:52]} 20. Qe2 {[%emt 0:04:11]} Qc4+ {[%emt 0:10:23]} 21. Qxc4 {[%emt 0:00:10]} Rxc4+ {[%emt 0:00:04]} 22. Kb1 {[%emt 0:00:04]} Be7 {[%emt 0:12:58]} 23. f3 {[%emt 0:04:08]} Rc5 {[%emt 0:03:33]} 24. f4 {[%emt 0:00:48]} Rc4 {[%emt 0:02:13]} 25. Rc1 {[%emt 0:03:17]} Rac8 {[%emt 0:00:46]} 26. Ne4 {[%emt 0:03:10]} f6 {[%emt 0:08:08]} 27. exf6 {[%emt 0:04:49]} gxf6 {[%emt 0:03:22]} 28. Nd2 {[%emt 0:03:12]} Rxc1+ {[%emt 0:05:54]} 29. Rxc1 {[%emt 0:00:23]} Rxc1+ {[%emt 0:02:47]} 30. Kxc1 {[%emt 0:00:06]} f5 {[%emt 0:01:10]} 31. Kd1 {[%emt 0:07:12]} Bc5 {[%emt 0:01:54]} 32. Ke2 {[%emt 0:00:39]} b5 {[%emt 0:02:26]} 33. Nb3 {[%emt 0:08:26]} Bb6 {[%emt 0:00:04]} 34. Kd3 {[%emt 0:01:54]} Kd7 {[%emt 0:01:37]} 35. Nd4 {[%emt 0:01:30]} a6 {[%emt 0:00:05]} 36. b3 {[%emt 0:00:43]} Kd6 {[%emt 0:00:57]} 37. Ne2 {[%emt 0:00:56]} Bf2 {[%emt 0:01:28]} 38. Kc3 {[%emt 0:05:20]} Bc5 {[%emt 0:00:37]} 39. a4 {[%emt 0:03:29]} bxa4 {[%emt 0:00:55]} 40. bxa4 {[%emt 0:00:00]} Kd5 {[%emt 0:00:00]} 41. Kd3 {[%emt 0:07:57]} Bf2 {[%emt 0:01:15]} 42. Nc3+ {[%emt 0:00:10]} Kc6 {[%emt 0:01:41]} 43. Ne2 {[%emt 0:01:39]} Kc5 {[%emt 0:01:08]} 44. a5 {[%emt 0:01:36]} Be1 {[%emt 0:01:58]} 45. Ke3 {[%emt 0:03:50]} Kd5 {[%emt 0:03:12]} 46. Nd4 {[%emt 0:00:36]} Bxa5 {[%emt 0:00:53]} 47. Nf3 {[%emt 0:00:19]} Bb6+ {[%emt 0:00:16]} 48. Kd3 {[%emt 0:00:14]} Bf2 {[%emt 0:00:19]} 0-1

[Event "17th Aeroflot Open-A 2019"]
[Site "Moscow"]
[Date "2019.02.22"]
[Round "3.36"]
[White "Jumabayev, Rinat"]
[Black "Arjun Kalyan"]
[Result "1-0"]
[ECO "A11"]
[WhiteElo "2604"]
[BlackElo "2444"]
[Annotator "ChessBase"]
[PlyCount "87"]
[EventDate "2019.02.19"]
[EventCountry "RUS"]
[SourceTitle "playchess.com"]
[Source "ChessBase"]
[SourceQuality "1"]
[TimeControl "40/5400+30:1800+30"]

1. c4 {[%emt 0:04:48]} c6 {[%emt 0:00:00]} 2. g3 {[%emt 0:01:03]} d5 {[%emt 0:00:00]} 3. Bg2 {[%emt 0:00:04]} Nf6 {[%emt 0:01:32]} 4. Nf3 {[%emt 0:00:05]} Bg4 {[%emt 0:00:43]} 5. cxd5 {[%emt 0:00:27]} Bxf3 {[%emt 0:01:33]} 6. Bxf3 {[%emt 0:00:04]} cxd5 {[%emt 0:00:04]} 7. O-O {[%emt 0:00:30]} e6 {[%emt 0:00:06]} 8. d4 {[%emt 0:00:29]} Nc6 {[%emt 0:00:18]} 9. Nc3 {[%emt 0:00:08]} Be7 {[%emt 0:00:55]} 10. e3 {[%emt 0:00:12]} O-O {[%emt 0:01:17]} 11. Qe2 {[%emt 0:00:14]} Rc8 {[%emt 0:02:43]} 12. Bd2 {[%emt 0:01:37]} Na5 {[%emt 0:02:55]} 13. Rfc1 {[%emt 0:03:19]} Nc4 {[%emt 0:00:10]} 14. Be1 {[%emt 0:00:04]} Nd6 {[%emt 0:02:22]} 15. a4 {[%emt 0:09:54]} Qd7 {[%emt 0:04:37]} 16. a5 {[%emt 0:04:07]} Rc7 {[%emt 0:03:01]} 17. a6 {[%emt 0:00:40]} Rfc8 {[%emt 0:10:23]} 18. Na2 {[%emt 0:10:31]} Rxc1 {[%emt 0:12:59]} 19. Nxc1 {[%emt 0:00:05]} b6 {[%emt 0:07:09]} 20. Nd3 {[%emt 0:00:26]} Qc7 {[%emt 0:07:17]} 21. Qd1 {[%emt 0:05:02]} Nd7 {[%emt 0:03:50]} 22. Be2 {[%emt 0:04:53]} Qc2 {[%emt 0:07:46]} 23. Qxc2 {[%emt 0:01:10]} Rxc2 {[%emt 0:01:28]} 24. Kf1 {[%emt 0:00:07]} Rc7 {[%emt 0:00:31]} 25. g4 {[%emt 0:00:44]} Kf8 {[%emt 0:01:23]} 26. Bd1 {[%emt 0:00:17]} Ke8 {[%emt 0:05:22]} 27. f3 {[%emt 0:01:17]} Nc4 {[%emt 0:06:19]} 28. Ke2 {[%emt 0:00:02]} Rc8 {[%emt 0:03:30]} 29. h4 {[%emt 0:03:32]} Nb8 {[%emt 0:02:38]} 30. g5 {[%emt 0:03:28]} f6 {[%emt 0:03:53]} 31. gxf6 {[%emt 0:06:56]} gxf6 {[%emt 0:00:02]} 32. e4 {[%emt 0:05:05]} Nc6 {[%emt 0:03:33]} 33. Ba4 {[%emt 0:01:48]} Kf7 {[%emt 0:00:22]} 34. Bc3 {[%emt 0:00:19]} Bd6 {[%emt 0:02:56]} 35. Bb5 {[%emt 0:03:04]} Ne7 {[%emt 0:01:04]} 36. h5 {[%emt 0:05:12]} Rg8 {[%emt 0:01:16]} 37. Be1 {[%emt 0:02:02]} Rg2+ {[%emt 0:00:39]} 38. Bf2 {[%emt 0:00:09]} Na5 {[%emt 0:00:13]} 39. e5 {[%emt 0:09:48]} Bb8 {[%emt 0:00:13]} 40. Ra3 {[%emt 0:00:00]} fxe5 {[%emt 0:00:00]} 41. Nxe5+ {[%emt 0:09:04]} Bxe5 {[%emt 0:08:32]} 42. dxe5 {[%emt 0:00:10]} Nc4 {[%emt 0:00:09]} 43. Rc3 {[%emt 0:04:25]} Rg8 {[%emt 0:05:42]} 44. b3 {[%emt 0:03:20]} 1-0

[Event "17th Aeroflot Open-A 2019"]
[Site "Moscow"]
[Date "2019.02.22"]
[Round "3.37"]
[White "Karthik Venkataraman"]
[Black "Paravyan, David"]
[Result "0-1"]
[ECO "C65"]
[WhiteElo "2494"]
[BlackElo "2627"]
[Annotator "ChessBase"]
[PlyCount "98"]
[EventDate "2019.02.19"]
[EventCountry "RUS"]
[SourceTitle "playchess.com"]
[Source "ChessBase"]
[SourceQuality "1"]
[TimeControl "40/5400+30:1800+30"]

1. e4 {[%emt 0:00:00]} e5 {[%emt 0:00:00]} 2. Nf3 {[%emt 0:00:00]} Nc6 {[%emt 0:00:00]} 3. Bb5 {[%emt 0:00:00]} Nf6 {[%emt 0:00:00]} 4. d3 {[%emt 0:00:00]} Bc5 {[%emt 0:00:00]} 5. Ba4 {[%emt 0:00:00]} O-O {[%emt 0:01:28]} 6. c3 {[%emt 0:00:02]} d6 {[%emt 0:00:17]} 7. Bg5 {[%emt 0:00:23]} Bb6 {[%emt 0:20:11]} 8. Nbd2 {[%emt 0:01:21]} Be6 {[%emt 0:00:07]} 9. Qe2 {[%emt 0:03:48]} Kh8 {[%emt 0:03:04]} 10. Bh4 {[%emt 0:13:30]} Ne7 {[%emt 0:01:07]} 11. Bxf6 {[%emt 0:23:50]} gxf6 {[%emt 0:00:17]} 12. d4 {[%emt 0:00:39]} Rg8 {[%emt 0:01:12]} 13. g3 {[%emt 0:00:09]} a5 {[%emt 0:05:59]} 14. Nc4 {[%emt 0:02:38]} Ba7 {[%emt 0:02:02]} 15. Ne3 {[%emt 0:02:22]} c6 {[%emt 0:05:49]} 16. Rd1 {[%emt 0:01:04]} Qc7 {[%emt 0:03:38]} 17. Nh4 {[%emt 0:03:57]} exd4 {[%emt 0:15:43]} 18. cxd4 {[%emt 0:00:09]} d5 {[%emt 0:03:50]} 19. exd5 {[%emt 0:05:30]} Nxd5 {[%emt 0:00:41]} 20. Qf3 {[%emt 0:04:24]} Rae8 {[%emt 0:03:11]} 21. O-O {[%emt 0:07:44]} Qf4 {[%emt 0:01:04]} 22. Qxf4 {[%emt 0:00:07]} Nxf4 {[%emt 0:00:05]} 23. Kh1 {[%emt 0:00:07]} Nd5 {[%emt 0:03:01]} 24. Nef5 {[%emt 0:06:53]} b5 {[%emt 0:04:44]} 25. Bc2 {[%emt 0:00:44]} Nb4 {[%emt 0:00:06]} 26. Bb1 {[%emt 0:00:04]} Bd5+ {[%emt 0:03:14]} 27. Kg1 {[%emt 0:02:39]} Nxa2 {[%emt 0:02:57]} 28. Bxa2 {[%emt 0:01:23]} Bxa2 {[%emt 0:00:05]} 29. Ra1 {[%emt 0:00:08]} Bc4 {[%emt 0:00:42]} 30. Rfc1 {[%emt 0:00:04]} Re4 {[%emt 0:06:28]} 31. Rxa5 {[%emt 0:02:08]} Bxd4 {[%emt 0:00:15]} 32. Nxd4 {[%emt 0:00:05]} Rxd4 {[%emt 0:00:05]} 33. Nf5 {[%emt 0:00:03]} Rd2 {[%emt 0:00:20]} 34. Ne3 {[%emt 0:00:14]} Be6 {[%emt 0:00:57]} 35. b4 {[%emt 0:03:10]} Rc8 {[%emt 0:01:10]} 36. Rb1 {[%emt 0:06:26]} Kg8 {[%emt 0:02:21]} 37. Ra7 {[%emt 0:01:56]} Kf8 {[%emt 0:06:56]} 38. h4 {[%emt 0:00:26]} Rd7 {[%emt 0:00:48]} 39. Ra6 {[%emt 0:01:17]} Rd4 {[%emt 0:00:26]} 40. Ra7 {[%emt 0:00:00]} Rd7 {[%emt 0:00:00]} 41. Ra6 {[%emt 0:00:32]} Ke7 {[%emt 0:07:17]} 42. Kg2 {[%emt 0:01:46]} Rd4 {[%emt 0:07:53]} 43. Ra7+ {[%emt 0:00:37]} Kd6 {[%emt 0:00:31]} 44. Rb2 {[%emt 0:03:14]} h6 {[%emt 0:01:21]} 45. Kf3 {[%emt 0:02:44]} f5 {[%emt 0:00:27]} 46. Rb1 {[%emt 0:00:24]} Ke5 {[%emt 0:00:41]} 47. Rb2 {[%emt 0:04:33]} f4 {[%emt 0:02:20]} 48. Ng4+ {[%emt 0:00:08]} Kf5 {[%emt 0:02:22]} 49. Nxh6+ {[%emt 0:00:31]} Kg6 {[%emt 0:00:07]} 0-1

[Event "17th Aeroflot Open-A 2019"]
[Site "Moscow"]
[Date "2019.02.22"]
[Round "3.38"]
[White "Henderson de La Fuente, Lance"]
[Black "Vaibhav, Suri"]
[Result "0-1"]
[ECO "B12"]
[WhiteElo "2490"]
[BlackElo "2575"]
[Annotator "ChessBase"]
[PlyCount "86"]
[EventDate "2019.02.19"]
[EventCountry "RUS"]
[SourceTitle "playchess.com"]
[Source "ChessBase"]
[SourceQuality "1"]
[TimeControl "40/5400+30:1800+30"]

1. e4 {[%emt 0:00:00]} c6 {[%emt 0:00:00]} 2. d4 {[%emt 0:00:00]} d5 {[%emt 0:00:01]} 3. e5 {[%emt 0:00:00]} c5 {[%emt 0:00:06]} 4. dxc5 {[%emt 0:00:05]} e6 {[%emt 0:00:06]} 5. Nf3 {[%emt 0:00:13]} Bxc5 {[%emt 0:00:09]} 6. a3 {[%emt 0:00:19]} Ne7 {[%emt 0:00:07]} 7. b4 {[%emt 0:00:14]} Bb6 {[%emt 0:00:06]} 8. Bb2 {[%emt 0:00:13]} a5 {[%emt 0:01:01]} 9. Nbd2 {[%emt 0:00:27]} axb4 {[%emt 0:00:14]} 10. axb4 {[%emt 0:00:08]} Rxa1 {[%emt 0:00:05]} 11. Qxa1 {[%emt 0:01:06]} O-O {[%emt 0:00:18]} 12. Bd3 {[%emt 0:03:49]} Na6 {[%emt 0:00:11]} 13. Qa3 {[%emt 0:05:52]} Ng6 {[%emt 0:01:11]} 14. O-O {[%emt 0:04:27]} Qe7 {[%emt 0:03:42]} 15. b5 {[%emt 0:10:28]} Nc5 {[%emt 0:13:51]} 16. Bxg6 {[%emt 0:08:34]} hxg6 {[%emt 0:15:48]} 17. c4 {[%emt 0:03:41]} Bd8 {[%emt 0:14:43]} 18. Rc1 {[%emt 0:13:13]} b6 {[%emt 0:00:26]} 19. cxd5 {[%emt 0:04:42]} exd5 {[%emt 0:00:12]} 20. Nb3 {[%emt 0:01:26]} Qb7 {[%emt 0:23:04]} 21. Nxc5 {[%emt 0:09:16]} bxc5 {[%emt 0:00:05]} 22. Qxc5 {[%emt 0:00:11]} Bd7 {[%emt 0:00:07]} 23. Rb1 {[%emt 0:05:51]} Bb6 {[%emt 0:06:33]} 24. Qb4 {[%emt 0:00:28]} Rc8 {[%emt 0:02:17]} 25. h3 {[%emt 0:10:16]} Rc4 {[%emt 0:04:18]} 26. Qe7 {[%emt 0:01:58]} Qc8 {[%emt 0:01:05]} 27. Qd6 {[%emt 0:02:43]} Bf5 {[%emt 0:05:54]} 28. Rd1 {[%emt 0:00:52]} Qb7 {[%emt 0:04:08]} 29. Bd4 {[%emt 0:01:26]} Bc7 {[%emt 0:02:09]} 30. Qe7 {[%emt 0:07:00]} Qxb5 {[%emt 0:00:03]} 31. Ra1 {[%emt 0:00:28]} Qb8 {[%emt 0:00:54]} 32. Ra7 {[%emt 0:04:29]} Be6 {[%emt 0:00:55]} 33. Ng5 {[%emt 0:02:02]} Qc8 {[%emt 0:02:04]} 34. Nxe6 {[%emt 0:00:19]} fxe6 {[%emt 0:00:13]} 35. f4 {[%emt 0:00:41]} Kh7 {[%emt 0:00:17]} 36. Bf2 {[%emt 0:00:31]} Qb8 {[%emt 0:00:51]} 37. Qxe6 {[%emt 0:00:30]} Rxf4 {[%emt 0:00:01]} 38. Ra1 {[%emt 0:00:31]} Rxf2 {[%emt 0:00:39]} 39. Ra6 {[%emt 0:00:26]} Rf8 {[%emt 0:00:55]} 40. Qxg6+ {[%emt 0:00:00]} Kg8 {[%emt 0:00:00]} 41. Qe6+ {[%emt 0:03:23]} Kh8 {[%emt 0:02:37]} 42. Qxd5 {[%emt 0:00:20]} Qb1+ {[%emt 0:09:43]} 43. Kh2 {[%emt 0:00:02]} Bb6 {[%emt 0:02:18]} 0-1

[Event "17th Aeroflot Open-A 2019"]
[Site "Moscow"]
[Date "2019.02.22"]
[Round "3.39"]
[White "Sargsyan, Shant"]
[Black "Narayanan, Srinath"]
[Result "1-0"]
[ECO "E15"]
[WhiteElo "2488"]
[BlackElo "2572"]
[Annotator "ChessBase"]
[PlyCount "55"]
[EventDate "2019.02.19"]
[EventCountry "RUS"]
[SourceTitle "playchess.com"]
[Source "ChessBase"]
[SourceQuality "1"]
[TimeControl "40/5400+30:1800+30"]

1. d4 {[%emt 0:00:12]} Nf6 {[%emt 0:00:51]} 2. c4 {[%emt 0:00:39]} e6 {[%emt 0:00:04]} 3. Nf3 {[%emt 0:00:45]} b6 {[%emt 0:00:11]} 4. g3 {[%emt 0:00:29]} Bb4+ {[%emt 0:00:06]} 5. Bd2 {[%emt 0:01:14]} Be7 {[%emt 0:00:09]} 6. Nc3 {[%emt 0:01:01]} Bb7 {[%emt 0:00:13]} 7. Bg2 {[%emt 0:00:31]} c6 {[%emt 0:01:05]} 8. O-O {[%emt 0:03:11]} d5 {[%emt 0:00:15]} 9. b3 {[%emt 0:00:42]} Nbd7 {[%emt 0:00:32]} 10. Qc2 {[%emt 0:01:02]} O-O {[%emt 0:00:08]} 11. Rfd1 {[%emt 0:01:48]} Rc8 {[%emt 0:00:08]} 12. e4 {[%emt 0:01:36]} c5 {[%emt 0:09:28]} 13. exd5 {[%emt 0:07:31]} exd5 {[%emt 0:00:17]} 14. Bf4 {[%emt 0:07:22]} dxc4 {[%emt 0:16:46]} 15. d5 {[%emt 0:03:13]} Nh5 {[%emt 0:04:21]} 16. Be3 {[%emt 0:06:57]} cxb3 {[%emt 0:38:35]} 17. axb3 {[%emt 0:00:23]} c4 {[%emt 0:02:42]} 18. Rxa7 {[%emt 0:06:58]} cxb3 {[%emt 0:00:11]} 19. Qxb3 {[%emt 0:00:48]} Bc5 {[%emt 0:01:22]} 20. Bg5 {[%emt 0:01:55]} Qc7 {[%emt 0:00:26]} 21. d6 {[%emt 0:00:48]} Qb8 {[%emt 0:07:13]} 22. Rxb7 {[%emt 0:00:31]} Qxb7 {[%emt 0:00:21]} 23. Ne5 {[%emt 0:00:15]} Qa7 {[%emt 0:00:07]} 24. Nb5 {[%emt 0:00:20]} Qa5 {[%emt 0:00:07]} 25. Nxd7 {[%emt 0:00:24]} Rfe8 {[%emt 0:00:05]} 26. Nxc5 {[%emt 0:00:48]} Re1+ {[%emt 0:00:07]} 27. Rxe1 {[%emt 0:00:06]} Qxe1+ {[%emt 0:00:04]} 28. Bf1 {[%emt 0:00:01]} 1-0

[Event "17th Aeroflot Open-A 2019"]
[Site "Moscow"]
[Date "2019.02.23"]
[Round "4.4"]
[White "Kulaots, Kaido"]
[Black "Martirosyan, Haik M."]
[Result "1/2-1/2"]
[ECO "C67"]
[WhiteElo "2542"]
[BlackElo "2616"]
[Annotator "RC"]
[PlyCount "47"]
[EventDate "2019.02.19"]
[EventCountry "RUS"]
[SourceTitle "playchess.com"]
[Source "ChessBase"]
[SourceQuality "1"]
[TimeControl "40/5400+30:1800+30"]

1. e4 {[%emt 0:00:00]} e5 {[%emt 0:00:00]} 2. Nf3 {[%emt 0:00:00]} Nc6 {[%emt 0:00:11]} 3. Bb5 {[%emt 0:00:09]} Nf6 {[%emt 0:00:39]} 4. O-O {[%emt 0:00:32]} Nxe4 {[%emt 0:00:42]} 5. d4 {[%emt 0:01:43]} Nd6 {[%emt 0:00:22]} 6. Bxc6 {[%emt 0:00:11]} dxc6 {[%emt 0:00:07]} 7. dxe5 {[%emt 0:00:06]} Nf5 {[%emt 0:00:06]} 8. Qxd8+ {[%emt 0:00:08]} Kxd8 {[%emt 0:00:05]} 9. h3 {[%emt 0:00:12]} h5 {[%emt 0:02:48]} 10. Nc3 {[%emt 0:00:41]} Be7 {[%emt 0:01:44]} 11. Bf4 {[%emt 0:05:01]} Bd7 {[%emt 0:13:02]} 12. Rad1 {[%emt 0:07:02]} Kc8 {[%emt 0:00:21]} 13. Bg5 {[%emt 0:05:44]} Re8 {[%emt 0:09:38]} 14. Bxe7 {[%emt 0:02:06]} Rxe7 {[%emt 0:00:14]} 15. Ne2 {[%emt 0:02:59]} b6 {[%emt 0:14:08]} 16. Nf4 {[%emt 0:06:09]} h4 {[%emt 0:00:23]} 17. Rfe1 {[%emt 0:14:57]} Kb7 {[%emt 0:02:22]} 18. Kh2 {[%emt 0:06:43]} Rae8 {[%emt 0:06:47]} 19. g4 {[%emt 0:08:58]} hxg3+ {[%emt 0:00:43]} 20. fxg3 {[%emt 0:00:05]} c5 {[%emt 0:08:05]} 21. Nd5 {[%emt 0:02:13]} Re6 {[%emt 0:00:43]} 22. Nf4 {[%emt 0:00:12]} R6e7 {[%emt 0:00:30]} 23. Nd5 {[%emt 0:19:33]} Re6 {[%emt 0:00:33]} 24. Nf4 {[%emt 0:02:24]} 1/2-1/2

[Event "17th Aeroflot Open-A 2019"]
[Site "Moscow"]
[Date "2019.02.23"]
[Round "4.27"]
[White "Ghaem Maghami, Ehsan"]
[Black "Firouzja, Alireza"]
[Result "0-1"]
[ECO "B30"]
[WhiteElo "2540"]
[BlackElo "2618"]
[Annotator "RC"]
[PlyCount "100"]
[EventDate "2019.02.19"]
[EventCountry "RUS"]
[SourceTitle "playchess.com"]
[Source "ChessBase"]
[SourceQuality "1"]
[TimeControl "40/5400+30:1800+30"]

1. e4 {[%emt 0:01:08]} c5 {[%emt 0:04:26]} 2. Nf3 {[%emt 0:00:20]} Nc6 {[%emt 0:01:02]} 3. c3 {[%emt 0:04:50]} Nf6 {[%emt 0:00:29]} 4. e5 {[%emt 0:00:11]} Nd5 {[%emt 0:00:07]} 5. d4 {[%emt 0:01:49]} cxd4 {[%emt 0:00:07]} 6. cxd4 {[%emt 0:03:43]} d6 {[%emt 0:00:10]} 7. Bc4 {[%emt 0:00:05]} Nb6 {[%emt 0:05:00]} 8. Bb5 {[%emt 0:01:28]} Bd7 {[%emt 0:00:08]} 9. Nc3 {[%emt 0:17:14]} dxe5 {[%emt 0:00:29]} 10. dxe5 {[%emt 0:00:59]} g6 {[%emt 0:02:30]} 11. h3 {[%emt 0:06:59]} Bg7 {[%emt 0:01:47]} 12. Qe2 {[%emt 0:08:25]} Qc7 {[%emt 0:05:05]} 13. Bf4 {[%emt 0:05:11]} a6 {[%emt 0:03:07]} 14. Bd3 {[%emt 0:00:26]} O-O {[%emt 0:01:47]} 15. O-O {[%emt 0:08:52]} Rad8 {[%emt 0:02:23]} 16. Rac1 {[%emt 0:03:19]} Be6 {[%emt 0:00:31]} 17. Qe3 {[%emt 0:06:09]} Bc4 {[%emt 0:15:31]} 18. e6 {[%emt 0:04:52]} Qc8 {[%emt 0:02:33]} 19. Rfd1 {[%emt 0:15:57]} Bxd3 {[%emt 0:16:47]} 20. Qxb6 {[%emt 0:00:31]} Qxe6 {[%emt 0:03:28]} 21. Qxb7 {[%emt 0:00:30]} Rd7 {[%emt 0:06:17]} 22. Qb6 {[%emt 0:00:19]} Nd4 {[%emt 0:02:53]} 23. Qxe6 {[%emt 0:00:19]} Nxf3+ {[%emt 0:00:42]} 24. gxf3 {[%emt 0:00:05]} fxe6 {[%emt 0:00:03]} 25. Be3 {[%emt 0:03:45]} Rxf3 {[%emt 0:00:25]} 26. Rd2 {[%emt 0:03:29]} Rxh3 {[%emt 0:00:49]} 27. Rcd1 {[%emt 0:00:40]} Bxc3 {[%emt 0:00:07]} 28. Rxd3 {[%emt 0:00:05]} Rxd3 {[%emt 0:00:09]} 29. Rxd3 {[%emt 0:00:01]} Bxb2 {[%emt 0:00:25]} 30. Rd8+ {[%emt 0:00:32]} Kf7 {[%emt 0:00:14]} 31. Ra8 {[%emt 0:00:18]} Rh4 {[%emt 0:02:37]} 32. Rxa6 {[%emt 0:00:13]} Rc4 {[%emt 0:03:24]} 33. Kg2 {[%emt 0:03:15]} Bd4 {[%emt 0:01:32]} 34. Bxd4 {[%emt 0:00:16]} Rxd4 {[%emt 0:00:05]} 35. a4 {[%emt 0:00:07]} Rd3 {[%emt 0:00:53]} 36. a5 {[%emt 0:00:20]} Ra3 {[%emt 0:00:08]} 37. Ra8 {[%emt 0:00:10]} e5 {[%emt 0:01:18]} 38. a6 {[%emt 0:00:08]} e4 {[%emt 0:01:01]} 39. a7 {[%emt 0:01:44]} h5 {[%emt 0:01:08]} 40. Kh2 {[%emt 0:00:00]} Kg7 {[%emt 0:00:00]} 41. Kg2 {[%emt 0:00:57]} g5 {[%emt 0:02:06]} 42. Kh2 {[%emt 0:04:59]} g4 {[%emt 0:01:30]} 43. Re8 {[%emt 0:04:07]} Rxa7 {[%emt 0:00:18]} 44. Kg3 {[%emt 0:00:05]} Ra3+ {[%emt 0:03:11]} 45. Kf4 {[%emt 0:02:00]} Rf3+ {[%emt 0:00:52]} 46. Kg5 {[%emt 0:00:13]} e3 {[%emt 0:04:13]} 47. Rxe7+ {[%emt 0:00:45]} Kf8 {[%emt 0:00:08]} 48. Rxe3 {[%emt 0:00:08]} Rxe3 {[%emt 0:00:10]} 49. fxe3 {[%emt 0:00:04]} g3 {[%emt 0:00:04]} 50. Kxh5 {[%emt 0:00:07]} g2 {[%emt 0:00:08]} 0-1